Cogmind - Beta 15 @@@ ROGUE MODE // 2025.06.13 @ 20:00:01 Player: 7604 Result: Destroyed by XL-GN6(j) with Overtuned Pulse Rifle Performance ------------- Evolutions (0) 0 Regions Visited (4) 800 Robots Destroyed (39) 195 Value Destroyed (876) 876 Prototype IDs (17) 340 Alien Tech Used (0) 0 Bonus (2800) 2800 TOTAL SCORE: 5011 Bonus ------- Delivered SUBCON Basin 2000 Registered with UFD 300 Met Optimus in HQ 500 Cogmind --------- Core Integrity 0/250 Matter 300/300 Energy 140/140 System Corruption 1% Temperature Cool (12) Movement Rolling (155) Ox5 Location -8/Scraptown Parts ------- > --- POWER (1) -------- Light Deuterium Engine > --- PROPULSION (2) --- Wheel Wheel > --- UTILITY (2) ------ Huge Storage Unit Hardened Medium Armor Plating > --- WEAPON (2) ------- Slug Cannon Improved Datajack > --- INVENTORY (25) --- Light Nuclear Core Potential Leg Compact Wheel VTOL Module Cesium-ion Thruster Cesium-ion Thruster Xenon Bombardment Thruster Medium Storage Unit Deep Structural Scanner Experimental Sensor Array Seismic Detector Seismic Detector Improved Utility Shielding Reflective Plating Makeshift Thermal Plating Hacking Suite Makeshift Hacking Suite Makeshift Hacking Suite System Shield Authchip [Device] Tech Extrapolator Mapping Drone Bay (3/3) Beam Cannon DM-GVY's Chainsaw Peak State ------------ > --- POWER ------------ Subdweller Power Source > --- PROPULSION ------- Spiked Treads Wheel > --- UTILITY ---------- Huge Storage Unit Makeshift Thermal Plating > --- WEAPON ----------- Beam Cannon Slug Cannon > --- INVENTORY -------- Subdweller Power Source Seismic Detector Seismic Detector Makeshift Light Armor Plating Scrap Shield Hacking Suite Makeshift Hacking Suite Subdweller Laser Subdweller Beam Cannon SUBCON Basin [Rating: 35] Favorites ----------- Power Subdweller Power Source Engine Subdweller Power Source Propulsion Light Treads Treads Light Treads Leg Aluminum Leg Wheel Wheel Utility Huge Storage Unit Device Seismic Detector Storage Huge Storage Unit Protection Makeshift Thermal Plating Weapon Beam Cannon Energy Gun EM Pulse Gun Energy Cannon Beam Cannon Ballistic Gun Heavy Assault Rifle Ballistic Cannon Slug Cannon Special Weapon Mining Laser Special Melee Weapon Improved Datajack Build | -11 -10 -10 -8 -8 ------- Run | Yrd Mat Sub Rec Scr Slots Evolved . | . . . . . Power . | . . . . . Propulsion . | . . . . . Utility . | . . . . . Weapon . | . . . . . Parts Attached 29 | 2 10 12 . 5 Power 5 | . 2 2 . 1 Engine 5 | . 2 2 . 1 Core . | . . . . . Reactor . | . . . . . Propulsion 7 | . 2 3 . 2 Treads 5 | . 2 2 . 1 Leg . | . . . . . Wheel 2 | . . 1 . 1 Hover . | . . . . . Flight . | . . . . . Utility 7 | 1 2 3 . 1 Device 2 | 1 . 1 . . Storage 2 | . 2 . . . Processor . | . . . . . Hackware . | . . . . . Protection 3 | . . 2 . 1 Artifact . | . . . . . Weapon 10 | 1 4 4 . 1 Energy Gun . | . . . . . Energy Cannon 4 | . 1 3 . . Ballistic Gun 3 | 1 2 . . . Ballistic Cannon 1 | . . 1 . . Launcher . | . . . . . Special Weapon 1 | . 1 . . . Impact Weapon . | . . . . . Slashing Weapon . | . . . . . Piercing Weapon . | . . . . . Special Melee Weapon 1 | . . . . 1 Unidentified Prototypes . | . . . . . Parts Lost 5 | . 2 3 . . Power 1 | . 1 . . . Propulsion 3 | . . 3 . . Utility . | . . . . . Weapon 1 | . 1 . . . Highest Loss Streak 2 | . 2 1 . . To Critical Strikes 1 | . 1 . . . Average Backups 12 | 6 10 9 9 17 Power . | 1 . . 1 . Propulsion 1 | 3 . . . 2 Utility 7 | . 3 5 6 11 Weapon 3 | 1 5 3 2 1 Tool/Special . | . . . . . Unused Backups 40 | 7 3 7 . 23 Power 3 | 1 1 . . 1 Propulsion 13 | 4 2 1 . 6 Utility 16 | 1 . 1 . 14 Weapon 8 | 1 . 5 . 2 Tool/Special . | . . . . . Average Slot Usage (%) 96 | . 99 96 100 94 Engine 13 | . 13 14 14 12 Treads 16 | . 24 23 14 8 Wheel 9 | . . . 14 19 Device 6 | . 14 12 . . Storage 13 | . 14 14 14 13 Protection 7 | . . 1 13 12 Energy Cannon 12 | . . 24 14 8 Ballistic Gun 6 | . 26 3 . . Ballistic Cannon 6 | . . . 14 11 Special Melee Weapon 1 | . . . . 5 Peak Build Rating 35 | 8 12 33 35 25 Average Rating 21 | 6 11 26 32 19 On Entrance 15 | 6 7 12 32 18 Naked Turns . | . . . . . Heaviest Build 108 | 12 95 108 99 101 Greatest Support 40 | 20 40 40 10 38 Greatest Overweight (x) 9 | . 4 9 9 9 Average Overweight (x) 5 | . . 2 9 6 Largest Inventory Capacity 25 | 8 25 25 25 25 Average Capacity 23 | 8 18 25 25 24 Most Carried 25 | 8 11 25 25 25 Average Carried 18 | 6 10 22 23 17 Final Capacity 25 | 8 25 25 25 25 Final Carried 25 | 7 11 25 12 24 Class Distribution -------------------- 89% | Mutant 10% | Derelict-Mutant Dominant Class ---------------- Mutant | -10/Materials Mutant | -10/Subcaves Mutant | -8/Recycling Mutant | -8/Scraptown Resources | -11 -10 -10 -8 -8 ----------- Run | Yrd Mat Sub Rec Scr Matter Collected 1010 | 235 393 142 44 196 Remotely . | . . . . . Salvage Created 1303 | 60 690 326 38 189 Parts 78 | 11 43 14 1 9 Haulers Intercepted 2 | . 2 . . . Recyclers Shooed 1 | 1 . . . . Parts Field Recycled . | . . . . . Retrieved Matter . | . . . . . Parts Self-Destructed 13 | . . 13 . . Prevented . | . . . . . Kills | -11 -10 -10 -8 -8 ------- Run | Yrd Mat Sub Rec Scr Combat Hostiles Destroyed 28 | . 16 8 1 3 Guns 15 | . 14 1 . . Cannons 13 | . 2 7 1 3 Classes Destroyed 12 | 1 7 2 . 2 Worker 1 | . 1 . . . Tunneler 3 | 3 . . . . Hauler 2 | . 2 . . . Recycler 1 | . 1 . . . Operator 1 | . 1 . . . Watcher 3 | . 3 . . . Swarmer 11 | . 9 2 . . Grunt 8 | . 7 1 . . Sentry 2 | . . 1 1 . Subdweller 4 | . . 4 . . Guru 1 | . . . . 1 Scrapper 2 | . . . . 2 Best Kill Streak 5 | 1 5 2 1 2 Combat Bots Only 5 | . 5 2 1 2 Max Kills in Single Turn 1 | 1 1 1 1 1 Gunslinging . | . . . . . Exploded . | . . . . . Melee . | . . . . . Uniques/NPCs Destroyed . | . . . . . Combat | -11 -10 -10 -8 -8 -------- Run | Yrd Mat Sub Rec Scr Hostile Shots Fired 142 | . 90 35 4 13 Missed 28 | . 14 7 2 5 Hits 114 | . 76 28 2 8 Projectile 114 | . 76 28 2 8 Critical Strikes 1 | . 1 . . . Damage Taken 1309 | . 658 475 31 145 Core 258 | . 133 50 31 44 Absorbed by Shields . | . . . . . Core Remaining (%) 100 | 100 . . . . Volleys Fired 132 | 10 55 54 2 11 Largest 2 | 2 2 2 2 1 Hottest 160 | 60 100 160 100 40 Shots Fired 227 | 20 106 86 4 11 Gun 116 | 20 92 4 . . Cannon 107 | . 10 82 4 11 Launcher . | . . . . . Special 4 | . 4 . . . Kinetic 130 | 19 92 6 2 11 Thermal 96 | . 14 80 2 . Explosive . | . . . . . Electromagnetic 1 | 1 . . . . Robot Hit Streak 11 | 4 11 10 5 7 Robot Miss Streak 4 | 3 4 2 . 3 Penetration Max . | . . . . . Secondary Targets 6 | . 6 . . . Max Gunslinging Chain 1 | . 1 . . . Shots Hit Robots 121 | 11 62 38 4 6 Core Hits 52 | 4 32 12 2 2 Critical Kills 2 | . 2 . . . Critical Parts Destroyed 2 | . 1 . 1 . Critical Strikes 4 | . 3 . 1 . Destroy 4 | . 3 . 1 . Melee Attacks 2 | . . . . 2 Impact . | . . . . . Slashing . | . . . . . Piercing . | . . . . . Sneak Attacks 2 | . . . . 2 Combat Hostiles . | . . . . . Follow-up Attacks . | . . . . . Damage Inflicted 2106 | 108 896 870 116 116 Guns 942 | 108 803 31 . . Cannons 1151 | . 85 839 111 116 Explosions . | . . . . . Melee . | . . . . . Ramming 13 | . 8 . 5 . Kinetic 1122 | 96 803 31 76 116 Thermal 959 | . 85 839 35 . Explosive . | . . . . . Electromagnetic 12 | 12 . . . . Impact . | . . . . . Slashing . | . . . . . Piercing . | . . . . . Highest Corruption 1 | . . . . 1 Average Corruption 1 | . . . . 1 Corruption Purged . | . . . . . Corruption Blocked . | . . . . . Overload Shots . | . . . . . Overflow Damage 25 | . 4 . . 21 Projectiles 25 | . 4 . . 21 Explosions . | . . . . . Melee . | . . . . . Knockbacks . | . . . . . Impact . | . . . . . Kinetic . | . . . . . Secondary . | . . . . . Self-Inflicted Damage 2 | . . . 2 . Shots . | . . . . . Rammed 4 | . 2 . 2 . Targets Rammed 4 | . 2 . 2 . Kicked . | . . . . . Crushed . | . . . . . Highest Temperature 213 | 20 175 213 33 120 Average Temperature 46 | 15 41 54 17 40 Received Heat Transfer 318 | . 150 87 9 72 Siege Activations . | . . . . . Martial Activations . | . . . . . Shielding Activations . | . . . . . Robots Disrupted . | . . . . . Combat Hostiles . | . . . . . Robots Corrupted . | . . . . . Combat Hostiles . | . . . . . Parts Fried 1 | . . . . 1 Impact Corruptions . | . . . . . Robots Melted . | . . . . . Combat Hostiles . | . . . . . Parts Melted 6 | . 1 3 . 2 Heat Transferred 1591 | . 185 1332 74 . Parts Sabotaged . | . . . . . Parts Stolen . | . . . . . Parts Stripped . | . . . . . Power Chain Reactions . | . . . . . Alert | -11 -10 -10 -8 -8 ------- Run | Yrd Mat Sub Rec Scr Maximum Alert Level . | . . . . . Low Security (%) 100 | 100 100 . 100 . Level 1 . | . . . . . Level 2 . | . . . . . Level 3 . | . . . . . Level 4 . | . . . . . Level 5 . | . . . . . High Security . | . . . . . Max Security . | . . . . . Peak Influence 120 | 5 120 . 95 . Initial 75 | . . . 75 . Average 25 | 1 36 . 11 . Influence Increases 893 | 15 541 245 92 . Destroy 0b10 Robot/C 420 | . 320 80 20 . Destroy 0b10 Robot/NC 55 | 15 40 . . . Destroy Leader 70 | . 70 . . . Successful Hack 73 | . 61 . 12 . Select Force Hacks 90 | . 30 . 60 . Disable Machine 15 | . 15 . . . Destroy Structure 5 | . 5 . . . Lose Combat Pursuer 165 | . . 165 . . Influence Decreases 893 | 15 541 87 206 44 Entered New Map 127 | . . . 83 44 Time Decay 639 | 15 434 67 123 . Lost Part 40 | . 20 20 . . Purge Threat 87 | . 87 . . . Squads Dispatched 4 | . 4 . . . Investigation 3 | . 3 . . . Extermination . | . . . . . Reinforcement 1 | . 1 . . . Assault . | . . . . . Garrison . | . . . . . Intercept . | . . . . . Searches Triggered . | . . . . . Construction Impeded . | . . . . . Haulers Reinforced . | . . . . . Active Scanning Responses . | . . . . . Cargo Convoy Interrupts . | . . . . . Stealth | -11 -10 -10 -8 -8 --------- Run | Yrd Mat Sub Rec Scr Distress Signals 1 | . 1 . . . Communications Jammed . | . . . . . Distress Signals . | . . . . . Times Spotted 52 | . 26 16 1 9 Peak Tracking Total 7 | . 7 2 1 4 Tactical Retreats 8 | . . 6 . 2 Traps | -11 -10 -10 -8 -8 ------- Run | Yrd Mat Sub Rec Scr Traps Triggered 3 | . 3 . . . Indirectly . | . . . . . Trap Hack Attempts . | . . . . . Triggered . | . . . . . Disarmed . | . . . . . Reprogrammed . | . . . . . Reused . | . . . . . Traps Extracted . | . . . . . Installed . | . . . . . Triggered . | . . . . . Machines | -11 -10 -10 -8 -8 ---------- Run | Yrd Mat Sub Rec Scr Machines Disabled 3 | . 1 . . 2 Max in Single Turn 1 | . 1 . . 1 Machines Repaired . | . . . . . Machines Dismantled . | . . . . . Machines Sabotaged . | . . . . . Overloaded Fab Kills . | . . . . . Hacking | -11 -10 -10 -8 -8 --------- Run | Yrd Mat Sub Rec Scr Machines Accessed 19 | . 6 2 8 3 Terminals 11 | . 5 . 6 . Fabricators . | . . . . . Repair Stations . | . . . . . Recycling Units 3 | . 1 . 2 . Scanalyzers . | . . . . . Garrison Access . | . . . . . Total Hacks 76 | . 22 3 27 24 Successful 52 | . 13 3 12 24 Failed 22 | . 8 . 14 . Catastrophic 5 | . 1 . 4 . Database Lockouts 2 | . 1 . 1 . Manual 37 | . 15 . 22 . Terminals 40 | . 20 . 20 . Fabricators . | . . . . . Repair Stations . | . . . . . Recycling Units 9 | . 2 . 7 . Scanalyzers . | . . . . . Garrison Access . | . . . . . Terminal Hacks 33 | . 5 3 1 24 Record 25 | . . 1 . 24 Part Schematic 1 | . 1 . . . Robot Analysis 1 | . . . 1 . Prototype ID Bank 1 | . 1 . . . Open Door 1 | . . 1 . . Unreport Threat 1 | . 1 . . . Locate Traps 1 | . 1 . . . Hauler Manifests 1 | . 1 . . . Release Object 1 | . . 1 . . Fabricator Hacks . | . . . . . Repair Station Hacks . | . . . . . Recycling Unit Hacks 2 | . . . 2 . Retrieve Components 2 | . . . 2 . Scanalyzer . | . . . . . Garrison Access Hacks . | . . . . . Unauthorized Hacks 17 | . 8 . 9 . Terminals 14 | . 7 . 7 . Botnet 2 | . 1 . 1 . Operators 1 | . 1 . . . Skim 11 | . 5 . 6 . Fabricators . | . . . . . Repair Stations . | . . . . . Recycling Units 3 | . 1 . 2 . Tunnel 3 | . 1 . 2 . Scanalyzers . | . . . . . Garrison Access . | . . . . . Data Cores Recovered . | . . . . . Used . | . . . . . Hacking Detections 13 | . 6 . 7 . Full Trace Events 1 | . . . 1 . Feedback Events . | . . . . . Feedback Blocked . | . . . . . Robot Schematics Acquired . | . . . . . Robots Built . | . . . . . Authchips . | . . . . . Time . | . . . . . Total Robot Build Rating . | . . . . . Part Schematics Acquired 1 | . 1 . . . Parts Built . | . . . . . Authchips . | . . . . . Time . | . . . . . Total Part Build Rating . | . . . . . Parts Repaired . | . . . . . Time . | . . . . . Parts Recycled . | . . . . . Recycled Matter . | . . . . . Retrieved Matter . | . . . . . Retrieved Components 4 | . . . 4 . Parts Scanalyzed . | . . . . . Part Schematics Acquired . | . . . . . Parts Damaged . | . . . . . Bothacking | -11 -10 -10 -8 -8 ------------ Run | Yrd Mat Sub Rec Scr Used RIF Installer . | . . . . . Robots Hacked 2 | . . . . 2 Non-combat . | . . . . . Combat 2 | . . . . 2 Robot Hacks Applied 2 | . . . . 2 parse_system 2 | . . . . 2 Relay Couplers Released . | . . . . . Fabnet Peak Effective % . | . . . . . Robots Rewired . | . . . . . Allies Hacked . | . . . . . Hacks Repelled . | . . . . . Allies | -11 -10 -10 -8 -8 -------- Run | Yrd Mat Sub Rec Scr Total Allies . | . . . . . Largest Group . | . . . . . Highest-Rated Group . | . . . . . Highest-Rated Ally . | . . . . . Total Orders . | . . . . . Ally Attacks . | . . . . . Total Damage . | . . . . . Kills . | . . . . . Allies Corrupted . | . . . . . Allies Melted 2 | . . . . 2 Intel | -11 -10 -10 -8 -8 ------- Run | Yrd Mat Sub Rec Scr Active Infowar (turns) 4064 | 41 1854 2166 3 . Seismic 4064 | 41 1854 2166 3 . Robot Analysis Total 1 | . . . 1 . Derelict Logs Recovered 3 | . . . . 3 Drone Launches . | . . . . . Drone Recoveries . | . . . . . Exploration | -11 -10 -10 -8 -8 ------------- Run | Yrd Mat Sub Rec Scr Turns Passed 9012 | 110 1854 2447 1278 3323 Spaces Moved 3642 | 54 708 629 587 1664 Core 167 | . . . . 167 Treads 1195 | . 605 582 . 8 Legs 157 | 54 103 . . . Wheels 2123 | . . 47 587 1489 Hover . | . . . . . Flight . | . . . . . Fastest Speed 50 | 120 120 215 215 50 Average Speed 219 | 120 225 350 215 172 Slowest Speed 560 | 120 480 560 215 270 Overloaded Moves . | . . . . . Propulsion Burnouts . | . . . . . Robots Hopped . | . . . . . Potential Cave-ins . | . . . . . Cave-ins Triggered . | . . . . . Exploration Rate (%) 63 | 5 97 36 93 86 Regions Visited 4 Branch Regions 3 Pre-discovered Areas 11 | . 2 . 3 6 Known Exits Taken 1 | . . 1 . . Unknown Exits Taken 3 | 1 1 . 1 . Scrap Searched 15 | . . 8 . 7 Spaces Dug 6 | . 4 1 . 1 Terrain Destroyed 17 | . 4 9 . 4 Melee . | . . . . . Projectile 17 | . 4 9 . 4 AOE . | . . . . . Terrain Rammed . | . . . . . Walls Destroyed . | . . . . . Machines Disabled . | . . . . . Actions | -11 -10 -10 -8 -8 --------- Run | Yrd Mat Sub Rec Scr Total 4429 | 81 854 785 594 2115 Wait 475 | 10 58 63 . 344 Move 3638 | 53 707 628 586 1664 Hop . | . . . . . Pick Up 75 | 4 9 12 2 48 Fast Attach 9 | . 3 2 . 4 Attach 12 | 1 2 2 . 7 Detach 9 | . . . . 9 Swap 26 | 1 11 11 1 2 Drop 47 | 2 7 13 1 24 Fire 132 | 10 55 54 2 11 Melee 2 | . . . . 2 Ram 1 | . . . 1 . Kick . | . . . . . Crush 3 | . 2 . 1 . Escape Stasis . | . . . . . Rewire . | . . . . . Trap . | . . . . . Miscellaneous . | . . . . . Route ------- -11/Scrapyard -10/Materials (discovered 5 exits: [*Mat x3] / [*Min] / *Sub) -10/Subcaves (discovered 3 exits: Mat x2 / *Rec) -8/Recycling (discovered 2 exits: *Fac / *Scr) -8/Scraptown (discovered 2 exits: *Fac x2) History --------- Turn | Location | Event 1 | -11/Scrapyard | Discovered new exit (range 2) 111 | -11/Scrapyard | Entered Materials 307 | -10/Materials | Build established: Mutant 460 | -10/Materials | Discovered new exit (range 16) 552 | -10/Materials | Discovered new exit (range 8) 688 | -10/Materials | Discovered new exit (range 15) 1001 | -10/Materials | Core integrity fell below 50% 1224 | -10/Materials | Discovered new exit (range 16) 1328 | -10/Materials | Central database locked down 1532 | -10/Materials | Learned location of 2 exits from Subcaves 1556 | -10/Materials | Learned location of 2 exits from Subcaves 1592 | -10/Materials | Learned location of Mines (-9) 1639 | -10/Materials | Learned 4 Subcaves zone layouts 1946 | -10/Materials | Discovered new exit (range 7) 1965 | -10/Materials | Entered Subcaves 1966 | -10/Subcaves | Identified exit to Materials 1967 | -10/Subcaves | Identified exit to Recycling 2060 | -10/Subcaves | Shifting Twisted Machinery released Sub. Beam Cannon 2073 | -10/Subcaves | Shifting Twisted Machinery released Flamer 2247 | -10/Subcaves | Disturbed a concealed Subdweller 2478 | -10/Subcaves | Found SUBCON Basin 2815 | -10/Subcaves | Shifting Twisted Machinery released Spk. Treads 2820 | -10/Subcaves | Shifting Twisted Machinery released Flamer 3561 | -10/Subcaves | A swath of the cavern ceiling suddenly collapsed 4412 | -10/Subcaves | Entered Recycling 4416 | -8/Recycling | Core integrity fell below 20% 5150 | -8/Recycling | Discovered new exit (range 9) 5475 | -8/Recycling | Scanned before Scraplab entrance 5497 | -8/Recycling | Learned location of 1 exit from Extension 5505 | -8/Recycling | Entered Scraplab 5620 | -8/Recycling | Learned 4 Lower Caves zone layouts 5686 | -8/Recycling | Discovered new exit (range 3) 5690 | -8/Recycling | Entered Scraptown 5691 | -8/Scraptown | Identified exit to Factory 6107 | -8/Scraptown | Scanned Subdweller tech in exchange for log data 6112 | -8/Scraptown | Learned Factory terminal intel 6114 | -8/Scraptown | Learned location of Warlord (-5) 6116 | -8/Scraptown | Learned Factory stockpile data 6230 | -8/Scraptown | Visited Observation Area 6262 | -8/Scraptown | Visited Symbiants 6316 | -8/Scraptown | Visited Comm Corps 6350 | -8/Scraptown | Visited Shadow of the Wyrm 6365 | -8/Scraptown | Visited TADAMA 6808 | -8/Scraptown | Visited UFD Registry 6808 | -8/Scraptown | Registered with UFD as "Bladeslasher" 6853 | -8/Scraptown | Visited Infowarlord's Domain 6900 | -8/Scraptown | Visited Scrapoid Research Area 6937 | -8/Scraptown | Visited Curators Association 7006 | -8/Scraptown | Visited DA-N13 Charitable Foundation 7031 | -8/Scraptown | Found DCF Scrap (30 items) 7106 | -8/Scraptown | Visited Research Penetration Think Tank 7151 | -8/Scraptown | Visited Science Testing Area 7171 | -8/Scraptown | Visited Cartography Club 7226 | -8/Scraptown | Visited Scrapoid Pod Storage 7263 | -8/Scraptown | Visited Scrap Suit Storage 7297 | -8/Scraptown | Visited Abandonware Association 7319 | -8/Scraptown | Learned abandonware demo "KABOOM.EXE" 7323 | -8/Scraptown | Learned abandonware demo "OVRCLOCK.EXE" 7508 | -8/Scraptown | Delivered Scrap Shield to a Scientist 8074 | -8/Scraptown | Found Surveybot 17 Chip 8105 | -8/Scraptown | Learned location of Storage (-8) 8105 | -8/Scraptown | Learned location of Recycling (-8) 8105 | -8/Scraptown | Learned location of Proximity Caves (-3) 8105 | -8/Scraptown | Learned location of Quarantine (-2) 8105 | -8/Scraptown | Learned 12 Factory zone layouts 8105 | -8/Scraptown | Learned 16 Factory zone layouts 8105 | -8/Scraptown | Learned 24 Factory zone layouts 8105 | -8/Scraptown | Learned 8 Research zone layouts 8105 | -8/Scraptown | Learned 12 Lower Caves zone layouts 8105 | -8/Scraptown | Learned 16 Proximity Caves zone layouts 8105 | -8/Scraptown | Learned 24 Proximity Caves zone layouts 8105 | -8/Scraptown | Learned location of 1 exit from Factory 8105 | -8/Scraptown | Learned location of 1 exit from Research 8105 | -8/Scraptown | Learned location of 1 exit from Lower Caves 8132 | -8/Scraptown | Found Deep Structural Scanner 8315 | -8/Scraptown | Found Exp. Sensor Array 8507 | -8/Scraptown | Met Optimus 8507 | -8/Scraptown | Accepted into 0bPrime 8705 | -8/Scraptown | Build established: Derelict-Mutant 8907 | -8/Scraptown | Civil war broke out across Scraptown 8912 | -8/Scraptown | Found DM-GVY's Chainsaw 8925 | -8/Scraptown | Found Potential Leg 9013 | -8/Scraptown | Destroyed by XL-GN6(j) with Overtuned Pulse Rifle Last Messages --------------- 08965_ XS-XWO(p): "I knew Optimus was a traitor." 08970_ Destroyed Imp. Heat Sink. 08970_ XS-XWO(p) destroyed. 08972_ Acquired 59 matter. 08977_ Acquired 37 matter. 08979_ Dropped Hacking Suite. 08980_ Acquired Corrupted Mak. Hacking Suite. 08990_ 8X-VEL(j) cannibalizes Ovr. Titanium Leg to repair Ovr. Titanium Leg. 08994_ 8X-VEL(j) misfires. 08994_ Slug penetrates Wall. 08996_ Mak. Microdissipator Network melted. 08996_ Ovr. Pulse Rifle melted. 08996_ AQ-HOY(j) destroyed. 08998_ Mak. Salvage Targeting Computer fried. 08998_ 8X-VEL(j) destroyed. 09001_ Bolt penetrates XL-GN6(j). 09002_ Acquired 40 matter. 09004_ Bolt penetrates XL-GN6(j). Map ----- +----------------------------------------------------+ | ?????????????????????????????????????????????????? | | ?????????????????????????????????????????????????? | | ?????????????????????????????????????????????????? | | ?????????????????????????????????????????????????? | | ?????????????????????????????????????????????????? | | ?????????????????????????????????????????????????? | | ??????????????????????????????????